fUSD/lending_fUSD_20250606
["ID","MTS","AMOUNT","RATE_DAILY","PERIOD"]
[364713022,1749216632365,-2378.7,0.0002895,2]
[364713023,1749216632374,-183.95,0.0002895,2]
[364713024,1749216632384,-652.74,0.00028997,2]
[364713025,1749216632393,-700.0,0.00029,2]
[364713026,1749216632403,-154.3749213,0.00029045,2]
[364713027,1749216632412,-151.0,0.00029045,2]
[364713029,1749216632422,-151.0,0.00029045,2]
[364713031,1749216632431,-1788.91175508,0.00029045,2]
[364713033,1749216632440,-300.0,0.00029045,2]
[364713035,1749216632450,-800.0,0.00029045,2]
[364713037,1749216632459,-500.0,0.00029045,2]
[364713039,1749216632469,-800.0,0.00029045,2]
[364713041,1749216632478,-500.0,0.00029045,2]
[364713043,1749216632488,-1000.0,0.00029045,2]
[364713045,1749216632497,-500.0,0.00029045,2]
[364713047,1749216632506,-930.94833331,0.00029045,2]
[364713048,1749216632516,-500.0,0.00029045,2]
[364713049,1749216632525,-500.0,0.00029045,2]
[364713050,1749216632535,-500.0,0.00029045,2]
[364713051,1749216632544,-500.0,0.00029045,2]
[364713052,1749216632554,-151.0,0.00029045,2]
[364713053,1749216632563,-500.0,0.00029045,2]
[364713054,1749216632573,-500.0,0.00029045,2]
[364713056,1749216632582,-481.92636575,0.00029045,2]
[364713060,1749216632598,-18.07363425,0.00029045,2]
[364713063,1749216632608,-151.0,0.00029045,2]
[364713066,1749216632618,-500.0,0.00029045,2]
[364713068,1749216632628,-151.0,0.00029045,2]
[364713070,1749216632637,-500.0,0.00029045,2]
[364713072,1749216632647,-151.0,0.00029045,2]
[364713074,1749216632657,-500.0,0.00029045,2]
[364713076,1749216632666,-151.0,0.00029045,2]
[364713078,1749216632676,-500.0,0.00029045,2]
[364713080,1749216632686,-290.0,0.00029045,2]
[364713082,1749216632695,-205.05576075,0.00029045,2]
[364713103,1749216638046,-294.94423925,0.00029045,2]
[364713104,1749216638055,-500.0,0.00029045,2]
[364713105,1749216638065,-784.07129256,0.00029045,2]
[364713106,1749216638075,-263.84367196,0.00029045,2]
[364713107,1749216638112,-236.15632804,0.00029045,2]
[364713108,1749216638121,-207.4,0.00029045,2]
[364713109,1749216638136,-1000.0,0.00029062,2]
[364713110,1749216638147,-17187.69,0.00029062,2]
[364713111,1749216638157,-2924.65,0.00029062,2]
[364713112,1749216638166,-14785.68326396,0.00029078,2]
[364713113,1749216638176,-323.13,0.00029178,2]
[364713114,1749216638185,-211.0,0.0002918,2]
[364713115,1749216638195,-734.6195375,0.00029245,20]
[364713116,1749216638204,-655.15623,0.00029259,6]
[364713117,1749216638213,-163.22,0.00029378,2]
[364713118,1749216638222,-163.22,0.00029378,2]
[364713119,1749216638232,-1162.75,0.00029378,2]
[364713120,1749216638241,-163.22,0.00029378,2]
[364713121,1749216638250,-163.22,0.00029378,2]
[364713122,1749216638259,-178.33,0.0002951,2]
[364713123,1749216638269,-734.6195375,0.00029555,21]
[364713124,1749216638278,-745.52526686,0.00029626,2]
[364713125,1749216638287,-211.0,0.0002963,2]
[364713126,1749216638297,-7720.38591626,0.000297,2]
[364713127,1749216638306,-3041.23726912,0.00029787,2]
[364713128,1749216638315,-1341.7861,0.0002979,2]
[364713129,1749216638324,-1396.6596,0.0002979,2]
[364713130,1749216638333,-5611.43947728,0.000298,2]
[364713131,1749216638342,-433.65,0.00029815,2]
[364713132,1749216638352,-207.71,0.00029815,2]
[364713133,1749216638361,-9999.99,0.00029815,2]
[364713134,1749216638371,-270.5176,0.0002982,2]
[364713135,1749216638380,-5611.4394772,0.00029827,2]
[364713136,1749216638389,-5611.4394772,0.00029854,2]
[364713137,1749216638399,-734.6195375,0.00029866,21]
[364713138,1749216638408,-5611.4394772,0.00029881,2]
[364713140,1749216638417,-150.0,0.0002989,2]
[364713142,1749216638427,-10318.28227457,0.0002989,2]
[364713144,1749216638436,-576.07075442,0.00029891,20]
[364713146,1749216638445,-193.62230957,0.00029891,2]
[364713148,1749216638454,-287.6013756,0.00029893,2]
[364713150,1749216638463,-150.0,0.00029898,2]
[364713152,1749216638473,-866.4131,0.000299,2]
[364713154,1749216638483,-6059.94847822,0.000299,2]
[364713156,1749216638492,-1137.35382788,0.000299,2]
[364713158,1749216638501,-1137.35382785,0.000299,2]
[364713160,1749216638511,-1137.35382785,0.000299,2]
[364713162,1749216638520,-1137.35382785,0.000299,2]
[364713164,1749216638529,-1137.35382785,0.000299,2]
[364713166,1749216638538,-166.45333096,0.000299,2]
[364713168,1749216638547,-1137.35382785,0.000299,2]
[364713170,1749216638556,-399.8794,0.000299,2]
[364713172,1749216638566,-237.49350576,0.000299,2]
[364713174,1749216638575,-300.0,0.00029901,2]
[364713176,1749216638584,-1137.35382785,0.00029901,2]
[364713178,1749216638594,-1137.35382785,0.00029903,2]
[364713180,1749216638603,-1137.35382785,0.00029904,2]
[364713182,1749216638612,-166.45333093,0.00029905,2]
[364713184,1749216638621,-1137.35382785,0.00029906,2]
[364713186,1749216638630,-1137.35382785,0.00029908,2]
[364713188,1749216638640,-5611.4394772,0.00029908,2]
[364713190,1749216638649,-166.45333093,0.00029909,2]
[364713192,1749216638658,-1137.35382785,0.0002991,2]
[364713194,1749216638667,-150.0,0.0002991,2]
[364713196,1749216638676,-1137.35382785,0.00029911,2]
[364713198,1749216638687,-1137.35382785,0.00029913,2]
[364713200,1749216638696,-166.45333093,0.00029914,2]
[364713202,1749216638705,-1137.35382785,0.00029915,2]
[364713204,1749216638714,-1137.35382785,0.00029916,2]
[364713206,1749216638723,-1137.35382785,0.00029918,2]
[364713208,1749216638734,-150.0,0.00029918,2]
[364713210,1749216638743,-6059.94847816,0.00029918,2]
[364713212,1749216638752,-166.45333093,0.00029918,2]
[364713214,1749216638761,-1137.35382785,0.0002992,2]
[364713216,1749216638771,-1137.35382785,0.00029921,2]
[364713218,1749216638780,-166.45333093,0.00029923,2]
[364713220,1749216638789,-1137.35382785,0.00029923,2]
[364713222,1749216638799,-5000.0,0.00029924,2]
[364713224,1749216638808,-151.15276681,0.00029924,2]
[364713225,1749216638817,-150.0,0.00029931,2]
[364713227,1749216638826,-300.0,0.00029932,2]
[364713229,1749216638835,-150.0,0.00029933,2]
[364713231,1749216638844,-5611.4394772,0.00029935,2]
[364713233,1749216638853,-6059.94847816,0.00029936,2]
[364713235,1749216638863,-1000.0,0.00029941,2]
[364713237,1749216638872,-150.0,0.00029944,2]
[364713239,1749216638881,-174.97167064,0.00029952,2]
[364713241,1749216638891,-6059.94847816,0.00029955,2]
[364713243,1749216638900,-5611.4394772,0.00029962,2]
[364713245,1749216638910,-150.0,0.00029965,2]
[364713247,1749216638919,-150.0,0.00029967,2]
[364713249,1749216638928,-500.0,0.00029973,5]
[364713251,1749216638939,-500.0,0.00029973,5]
[364713252,1749216638949,-500.0,0.00029973,2]
[364713255,1749216638959,-179.0,0.00029973,2]
[364713257,1749216638968,-6059.94847816,0.00029973,2]
[364713259,1749216638978,-150.0,0.00029973,2]
[364713260,1749216638987,-150.0,0.00029977,2]
[364713263,1749216638998,-645.44290337,0.00029981,2]
[364713264,1749216639008,-150.0,0.00029981,2]
[364713266,1749216639019,-150.0,0.00029986,2]
[364713268,1749216639030,-193.62230957,0.00029986,2]
[364713271,1749216639039,-5611.4394772,0.00029989,2]
[364713273,1749216639049,-150.0,0.00029989,2]
[364713274,1749216639058,-150.0,0.00029989,2]
[364713276,1749216639067,-151.86,0.0002999,2]
[364713278,1749216639076,-109403.418788,0.0002999,2]
[364713280,1749216639085,-151.86,0.0002999,2]
[364713282,1749216639094,-150.0,0.00029991,2]
[364713285,1749216639105,-6059.94847816,0.00029991,2]
[364713287,1749216639115,-300.0,0.00029999,10]
[364713288,1749216639124,-666.0,0.00029999,10]
[364713290,1749216639133,-204.51492762,0.00029999,2]
[364713292,1749216639143,-500.0,0.00029999,2]
[364713294,1749216639152,-500.0,0.00029999,2]
[364713296,1749216639161,-500.0,0.00029999,2]
[364713298,1749216639170,-500.0,0.00029999,2]
[364713300,1749216639179,-500.0,0.00029999,2]
[364713302,1749216639188,-500.0,0.00029999,2]
[364713304,1749216639197,-500.0,0.00029999,2]
[364713306,1749216639207,-500.0,0.00029999,2]
[364713308,1749216639216,-374.32154514,0.00029999,2]
[364713310,1749216639224,-500.0,0.00029999,2]
[364713312,1749216639234,-500.0,0.00029999,2]
[364713314,1749216639243,-500.0,0.00029999,2]
[364713316,1749216639252,-500.0,0.00029999,2]
[364713318,1749216639261,-500.0,0.00029999,2]
[364713320,1749216639270,-500.0,0.00029999,2]
[364713322,1749216639280,-500.0,0.00029999,2]
[364713324,1749216639289,-500.0,0.00029999,2]
[364713326,1749216639298,-500.0,0.00029999,2]
[364713328,1749216639307,-500.0,0.00029999,2]
[364713330,1749216639317,-500.0,0.00029999,2]
[364713332,1749216639326,-500.0,0.00029999,2]
[364713334,1749216639335,-500.0,0.00029999,2]
[364713336,1749216639345,-406.39022796,0.00029999,2]
[364713338,1749216639355,-500.0,0.00029999,2]
[364713340,1749216639365,-500.0,0.00029999,2]
[364713342,1749216639374,-500.0,0.00029999,2]
[364713344,1749216639384,-500.3494402,0.00029999,2]
[364713346,1749216639394,-500.0,0.00029999,2]
[364713348,1749216639403,-500.0,0.00029999,2]
[364713350,1749216639413,-377.18304089,0.00029999,2]
[364713352,1749216639422,-500.0,0.00029999,2]
[364713354,1749216639431,-500.0,0.00029999,2]
[364713356,1749216639440,-500.0,0.00029999,2]
[364713358,1749216639450,-500.0,0.00029999,2]
[364713360,1749216639459,-500.0,0.00029999,2]
[364713362,1749216639468,-500.0,0.00029999,2]
[364713364,1749216639477,-279.54017064,0.00029999,2]
[364713365,1749216639486,-500.0,0.00029999,2]
[364713367,1749216639495,-500.0,0.00029999,2]
[364713369,1749216639505,-500.0,0.00029999,2]
[364713371,1749216639514,-500.0,0.00029999,2]
[364713373,1749216639523,-500.0,0.00029999,2]
[364713375,1749216639532,-500.0,0.00029999,2]
[364713377,1749216639542,-500.0,0.00029999,2]
[364713379,1749216639551,-500.0,0.00029999,2]
[364713381,1749216639561,-273.2720819,0.00029999,2]
[364713383,1749216639570,-1436.62148655,0.00029999,15]
[364713385,1749216639579,-12203.56,0.00029999,7]
[364713387,1749216639588,-500.0,0.00029999,7]
[364713389,1749216639598,-500.0,0.00029999,7]
[364713391,1749216639607,-300.0,0.00029999,10]
[364713393,1749216639616,-500.0,0.00029999,7]
[364713395,1749216639625,-7322.83407065,0.00029999,4]
[364713397,1749216639634,-50000.0,0.0003,22]
[364713399,1749216639644,-426.24,0.0003,7]
[364713401,1749216639653,-9990.37269557,0.0003,7]
[364713403,1749216639663,-250000.0,0.0003,10]
[364713405,1749216639672,-2000.0,0.0003,2]
[364713407,1749216639681,-700.0,0.0003,3]
[364713408,1749216639691,-150.0,0.0003,7]
[364713411,1749216639701,-150.0,0.0003,7]
[364713412,1749216639710,-328.06802051,0.0003,7]
[364713415,1749216639720,-256.08725996,0.0003,7]
[364713416,1749216639729,-150.0,0.0003,7]
[364713418,1749216639739,-150.0,0.0003,7]
[364713419,1749216639748,-150.0,0.0003,7]
[364713420,1749216639757,-150.0,0.0003,7]
[364713421,1749216639766,-150.0,0.0003,7]
[364713422,1749216639776,-150.0,0.0003,7]
[364713423,1749216639785,-150.0,0.0003,7]
[364713424,1749216639794,-150.0,0.0003,7]
[364713425,1749216639803,-4222.85073994,0.0003,2]
[364713426,1749216639812,-342.2473347,0.0003,5]
[364713427,1749216639822,-4140.14011784,0.0003,2]
[364713428,1749216639832,-215.0,0.0003,2]
[364713429,1749216639843,-9715.8834161,0.00030002,2]
[364713430,1749216639856,-12203.56,0.00030002,7]
[364713431,1749216639869,-19431.7668322,0.00030004,2]
[364713433,1749216639879,-227.19,0.00030008,2]
[364713434,1749216639889,-6059.94847816,0.00030009,2]
[364713435,1749216639899,-150.0,0.0003001,2]
[364713436,1749216639909,-300.0,0.00030011,2]
[364713438,1749216639919,-300.0,0.00030012,10]
[364713440,1749216639929,-281760.619067,0.00030013,2]
[364713442,1749216639943,-328.06802051,0.00030013,7]
[364713444,1749216639952,-256.08725996,0.00030013,7]
[364713446,1749216639961,-374.26896783,0.00030014,2]
[364713448,1749216639971,-150.0,0.00030015,7]
[364713450,1749216639981,-150.0,0.00030016,7]
[364713452,1749216639990,-5611.4394772,0.00030016,2]
[364713454,1749216639999,-150.0,0.00030019,2]
[364713456,1749216640008,-150.0,0.0003002,2]
[364713458,1749216640019,-300.0,0.00030022,10]
[364713460,1749216640028,-2819028.47307264,0.00030023,4]
[364713462,1749216640043,-150.0,0.00030023,7]
[364713464,1749216640062,-300.0,0.00030023,10]
[364713466,1749216640074,-151.62552,0.00030023,7]
[364713468,1749216640083,-151.0,0.00030023,7]
[364713470,1749216640092,-151.0,0.00030023,7]
[364713472,1749216640103,-151.0,0.00030023,7]
[364713474,1749216640113,-151.0,0.00030023,7]
[364713475,1749216640126,-151.0,0.00030023,7]
[364713477,1749216640135,-161.297418,0.00030023,7]
[364713480,1749216640145,-161.297418,0.00030023,7]
[364713483,1749216640154,-12203.56,0.00030023,7]
[364713485,1749216640164,-12203.56,0.00030023,7]
[364713487,1749216640173,-12203.56,0.00030023,7]
[364713489,1749216640182,-12203.56,0.00030023,7]
[364713491,1749216640191,-12203.56,0.00030023,7]
[364713493,1749216640200,-12203.56,0.00030023,7]
[364713495,1749216640209,-12203.56,0.00030023,7]
[364713497,1749216640218,-12203.56,0.00030023,7]
[364713499,1749216640228,-12203.56,0.00030023,7]
[364713501,1749216640237,-12203.56,0.00030023,7]
[364713503,1749216640246,-12203.56,0.00030023,7]
[364713505,1749216640256,-12203.56,0.00030023,7]
[364713507,1749216640265,-151.0,0.00030023,7]
[364713509,1749216640274,-151.0,0.00030023,7]
[364713511,1749216640283,-500.0,0.00030024,2]
[364713513,1749216640292,-13811.04979176,0.00030024,2]
[364713515,1749216640302,-78668.4225,0.00030024,2]
[364713517,1749216640311,-1000.0,0.00030024,2]
[364713519,1749216640320,-278.63005376,0.00030024,2]
[364713521,1749216640330,-4186.1101,0.00030024,2]
[364713523,1749216640339,-328.06802051,0.00030027,7]
[364713525,1749216640349,-256.08725996,0.00030027,7]
[364713527,1749216640358,-6059.94847816,0.00030028,2]
[364713529,1749216640369,-150.0,0.0003003,7]
[364713531,1749216640378,-150.0,0.00030031,7]
[364713533,1749216640387,-151.0,0.00030035,7]
[364713535,1749216640396,-151.0,0.00030035,7]
[364713536,1749216640405,-151.0,0.00030035,7]
[364713538,1749216640415,-151.0,0.00030035,7]
[364713540,1749216640425,-269.849036,0.00030035,7]
[364713542,1749216640435,-161.297418,0.00030035,7]
[364713544,1749216640444,-161.297418,0.00030035,7]
[364713546,1749216640453,-151.0,0.00030035,7]
[364713548,1749216640463,-151.0,0.00030035,7]
[364713550,1749216640472,-151.0,0.00030036,7]
[364713552,1749216640482,-151.0,0.00030036,7]
[364713554,1749216640491,-151.0,0.00030036,7]
[364713556,1749216640500,-151.0,0.00030036,7]
[364713558,1749216640509,-151.0,0.00030036,7]
[364713560,1749216640519,-151.0,0.00030036,7]
[364713562,1749216640528,-151.0,0.00030036,7]
[364713564,1749216640537,-151.0,0.00030036,7]
[364713566,1749216640546,-446.875126,0.00030036,7]
[364713568,1749216640555,-446.875126,0.00030036,7]
[364713570,1749216640565,-302.266727,0.00030036,7]
[364713572,1749216640574,-302.266727,0.00030036,7]
[364713574,1749216640584,-328.06802051,0.0003004,7]
[364713576,1749216640594,-256.08725996,0.0003004,7]
[364713578,1749216640603,-5611.4394772,0.00030043,2]
[364713580,1749216640613,-150.0,0.00030044,7]
[364713582,1749216640625,-150.0,0.00030046,7]
[364713584,1749216640634,-6059.94847816,0.00030046,2]
[364713586,1749216640644,-150.0,0.00030047,7]
[364713588,1749216640653,-150.0,0.00030049,7]
[364713590,1749216640663,-328.06802051,0.00030053,7]
[364713592,1749216640672,-256.08725996,0.00030053,7]
[364713594,1749216640681,-19060.9448275,0.00030054,2]
[364713596,1749216640691,-1000.0,0.00030057,2]
[364713598,1749216640701,-150.0,0.00030059,7]
[364713600,1749216640710,-150.0,0.00030063,7]
[364713602,1749216640720,-6059.94847816,0.00030064,2]
[364713604,1749216640730,-328.06802051,0.00030067,7]
[364713606,1749216640739,-256.08725996,0.00030067,7]
[364713608,1749216640748,-150.0,0.00030068,7]
[364713610,1749216640757,-308.31824401,0.00030069,2]
[364713612,1749216640767,-500.80163007,0.0003007,7]
[364713614,1749216640776,-12203.56,0.0003007,7]
[364713616,1749216640785,-151.0,0.00030071,7]
[364713618,1749216640794,-151.0,0.00030071,7]
[364713620,1749216640804,-151.0,0.00030071,7]
[364713623,1749216640813,-151.0,0.00030071,7]
[364713625,1749216640822,-151.0,0.00030071,7]
[364713627,1749216640831,-151.0,0.00030071,7]
[364713629,1749216640840,-151.0,0.00030071,7]
[364713631,1749216640849,-187.931992,0.00030071,7]
[364713633,1749216640858,-151.0,0.00030071,7]
[364713635,1749216640869,-151.0,0.00030071,7]
[364713636,1749216640879,-1526.754909,0.00030071,7]
[364713639,1749216640888,-1526.754909,0.00030071,7]
[364713641,1749216640898,-151.0,0.00030071,7]
[364713642,1749216640906,-151.0,0.00030071,7]
[364713644,1749216640915,-161.297418,0.00030071,7]
[364713646,1749216640925,-151.0,0.00030071,7]
[364713648,1749216640935,-161.297418,0.00030071,7]
[364713650,1749216640948,-151.0,0.00030071,7]
[364713652,1749216640957,-446.875126,0.00030071,7]
[364713655,1749216640967,-151.0,0.00030071,7]
[364713657,1749216640976,-446.875126,0.00030071,7]
[364713659,1749216640986,-151.0,0.00030071,7]
[364713661,1749216640995,-302.266727,0.00030071,7]
[364713663,1749216641005,-302.266727,0.00030071,7]
[364713665,1749216641018,-161.37103672,0.00030073,2]
[364713667,1749216641028,-502.36872942,0.00030073,5]
[364713669,1749216641039,-504.41815317,0.00030073,5]
[364713671,1749216641048,-159.78811227,0.00030073,5]
[364713673,1749216641058,-500.0,0.00030073,5]
[364713675,1749216641067,-508.02161837,0.00030073,5]
[364713677,1749216641076,-500.0,0.00030073,5]
[364713679,1749216641085,-150.0,0.00030073,2]
[364713681,1749216641094,-150.0,0.00030074,7]
[364713683,1749216641105,-300.0,0.00030076,2]
[364713685,1749216641115,-150.0,0.00030079,7]
[364713687,1749216641125,-211.0,0.0003008,2]
[364713689,1749216641134,-328.06802051,0.0003008,7]
[364713691,1749216641144,-256.08725996,0.0003008,7]
[364713693,1749216641153,-151.0,0.00030081,7]
[364713695,1749216641163,-151.0,0.00030081,7]
[364713697,1749216641172,-151.0,0.00030081,7]
[364713699,1749216641182,-151.0,0.00030081,7]
[364713701,1749216641191,-151.0,0.00030081,7]
[364713703,1749216641201,-151.0,0.00030081,7]
[364713705,1749216641211,-151.0,0.00030081,7]
[364713707,1749216641220,-151.0,0.00030081,7]
[364713709,1749216641230,-151.0,0.00030081,7]
[364713711,1749216641239,-322.677142,0.00030081,7]
[364713713,1749216641248,-322.677142,0.00030081,7]
[364713715,1749216641258,-717.020875,0.00030081,7]
[364713717,1749216641267,-1526.754909,0.00030081,7]
[364713719,1749216641276,-717.020875,0.00030081,7]
[364713721,1749216641286,-1526.754909,0.00030081,7]
[364713723,1749216641295,-468.158559,0.00030081,7]
[364713725,1749216641305,-468.158559,0.00030081,7]
[364713727,1749216641316,-193.62230957,0.00030081,2]
[364713729,1749216641325,-150.0,0.00030082,7]
[364713731,1749216641334,-150.0,0.00030086,2]
[364713733,1749216641343,-150.0,0.00030089,7]
[364713735,1749216641354,-150.0,0.00030091,2]
[364713737,1749216641363,-150.0,0.00030091,7]
[364713739,1749216641374,-150.0,0.00030093,2]
[364713741,1749216641384,-328.06802051,0.00030093,7]
[364713743,1749216641393,-256.08725996,0.00030093,7]
[364713745,1749216641403,-150.0,0.00030094,7]
[364713747,1749216641412,-150.0,0.00030098,7]
[364713749,1749216641422,-318.11274148,0.00030099,10]
[364713751,1749216641431,-150.0,0.00030099,2]
[364713753,1749216641440,-12203.56,0.00030099,7]
[364713755,1749216641450,-157.02570461,0.00030099,2]
[364713757,1749216641459,-152.10786679,0.00030099,2]
[364713759,1749216641469,-170.99199519,0.00030099,2]
[364713761,1749216641477,-200.53327557,0.00030099,2]
[364713763,1749216641487,-4500.0,0.000301,3]
[364713765,1749216641496,-768.0,0.000301,2]
[364713767,1749216641506,-159.0,0.000301,22]
[364713769,1749216641515,-79819.35991944,0.000301,2]
[364713771,1749216641524,-713.0,0.000301,2]
[364713773,1749216641533,-161.297418,0.000301,7]
[364713775,1749216641544,-161.297418,0.000301,7]
[364713777,1749216641553,-7720.36,0.000301,2]
[364713779,1749216641563,-376.0,0.000301,2]
[364713781,1749216641572,-150.0,0.00030102,2]
[364713783,1749216641582,-779.0,0.00030102,5]
[364713785,1749216641591,-152.113808,0.00030103,7]
[364713787,1749216641600,-151.0,0.00030103,7]
[364713789,1749216641610,-151.0,0.00030103,7]
[364713791,1749216641620,-151.0,0.00030103,7]
[364713793,1749216641630,-151.0,0.00030103,7]
[364713795,1749216641640,-151.0,0.00030103,7]
[364713797,1749216641649,-151.0,0.00030103,7]
[364713799,1749216641659,-151.0,0.00030103,7]
[364713801,1749216641668,-151.0,0.00030103,7]
[364713803,1749216641678,-151.0,0.00030103,7]
[364713805,1749216641687,-299.223605,0.00030103,7]
[364713806,1749216641696,-151.611789,0.00030103,7]
[364713808,1749216641706,-151.0,0.00030103,7]
[364713810,1749216641715,-152.238814,0.00030103,7]
[364713812,1749216641724,-550.171629,0.00030103,7]
[364713813,1749216641733,-550.171629,0.00030103,7]
[364713815,1749216641742,-151.0,0.00030103,7]
[364713817,1749216641752,-151.0,0.00030103,7]
[364713819,1749216641762,-151.0,0.00030103,7]
[364713821,1749216641771,-151.0,0.00030103,7]
[364713823,1749216641781,-157.000071,0.00030103,7]
[364713825,1749216641790,-151.0,0.00030103,7]
[364713827,1749216641800,-297.740512,0.00030103,7]
[364713828,1749216641810,-151.0,0.00030103,7]
[364713830,1749216641819,-151.0,0.00030103,7]
[364713832,1749216641829,-297.740512,0.00030103,7]
[364713834,1749216641839,-151.0,0.00030103,7]
[364713836,1749216641848,-151.0,0.00030103,7]
[364713838,1749216641858,-151.0,0.00030103,7]
[364713840,1749216641867,-322.677142,0.00030103,7]
[364713861,1749216642084,-322.677142,0.00030103,7]
[364713863,1749216642094,-717.020875,0.00030103,7]
[364713864,1749216642105,-717.020875,0.00030103,7]
[364713866,1749216642114,-468.158559,0.00030103,7]
[364713868,1749216642124,-468.158559,0.00030103,7]
[364713870,1749216642134,-500.0,0.00030103,7]
[364713872,1749216642143,-647.20709056,0.00030103,7]
[364713874,1749216642153,-150.0,0.00030104,7]
[364713876,1749216642162,-328.06802051,0.00030107,7]
[364713877,1749216642171,-256.08725996,0.00030107,7]
[364713879,1749216642180,-150.0,0.0003011,7]
[364713881,1749216642189,-300.0,0.0003011,2]
[364713883,1749216642199,-5000.0,0.00030112,2]
[364713885,1749216642209,-5000.0,0.00030112,3]
[364713887,1749216642218,-3659.9273244,0.00030112,4]
[364713889,1749216642228,-2000.0,0.00030113,2]
[364713891,1749216642238,-300.0,0.00030113,2]
[364713893,1749216642247,-150.0,0.00030114,7]
[364713895,1749216642257,-151.0,0.00030114,7]
[364713897,1749216642266,-2084.789669,0.00030114,7]
[364713898,1749216642275,-2084.789669,0.00030114,7]
[364713900,1749216642285,-151.0,0.00030114,7]
[364713902,1749216642295,-151.0,0.00030114,7]
[364713904,1749216642304,-151.0,0.00030114,7]
[364713906,1749216642313,-158.508177,0.00030114,7]
[364713908,1749216642323,-158.508177,0.00030114,7]
[364713910,1749216642332,-12203.56,0.00030114,7]
[364713912,1749216642341,-1759.524,0.00030115,25]
[364713913,1749216642350,-151.0,0.00030115,7]
[364713915,1749216642360,-151.0,0.00030115,7]
[364713917,1749216642370,-153.712885,0.00030115,7]
[364713919,1749216642380,-6263.1512426,0.00030115,2]
[364713921,1749216642389,-151.0,0.00030115,7]
[364713923,1749216642399,-151.0,0.00030115,7]
[364713924,1749216642408,-10066.5143033,0.00030115,2]
[364713926,1749216642418,-823.2675048,0.00030115,2]
[364713928,1749216642428,-151.0,0.00030115,7]
[364713930,1749216642438,-151.0,0.00030115,7]
[364713932,1749216642447,-151.0,0.00030115,7]
[364713934,1749216642457,-151.0,0.00030115,7]
[364713935,1749216642466,-158.326809,0.00030115,7]
[364713937,1749216642476,-151.0,0.00030115,7]
[364713939,1749216642486,-151.0,0.00030115,7]
[364713941,1749216642496,-151.0,0.00030115,7]
[364713943,1749216642505,-151.0,0.00030115,7]
[364713945,1749216642514,-151.0,0.00030115,7]
[364713947,1749216642523,-151.0,0.00030115,7]
[364713949,1749216642532,-2317.9954923,0.00030115,2]
[364713951,1749216642542,-151.0,0.00030115,7]
[364713953,1749216642551,-151.0,0.00030115,7]
[364713955,1749216642561,-322.677142,0.00030115,7]
[364713956,1749216642570,-151.0,0.00030115,7]
[364713958,1749216642580,-151.0,0.00030115,7]
[364713960,1749216642589,-322.677142,0.00030115,7]
[364713962,1749216642599,-151.0,0.00030115,7]
[364713964,1749216642608,-151.0,0.00030115,7]
[364713965,1749216642618,-7519.5505063,0.00030115,2]
[364713967,1749216642628,-151.0,0.00030115,7]
[364713969,1749216642637,-154.149509,0.00030115,7]
[364713971,1749216642647,-947.671199,0.00030115,2]
[364713973,1749216642657,-152.872388,0.00030115,7]
[364713975,1749216642667,-717.020875,0.00030115,7]
[364713977,1749216642676,-1526.754909,0.00030115,7]
[364713979,1749216642686,-1526.754909,0.00030115,7]
[364713981,1749216642696,-1526.754909,0.00030115,7]
[364713983,1749216642705,-717.020875,0.00030115,7]
[364713984,1749216642715,-1526.754909,0.00030115,7]